[Event "Early-Titled-Tuesday-Blitz-December-26-2023"]
[Site "Chess.com"]
[Date "2023.12.26"]
[Round "6"]
[White "ChessSwole"]
[Black "UnTucopalaTimba"]
[Result "1-0"]
[WhiteElo "2703"]
[BlackElo "2151"]
[TimeControl "180+1"]
[EndTime "9:07:03 PST"]
[Termination "ChessSwole won on time"]

1. d4 {[%clk 0:03:00.9]} 1... Nf6 {[%clk 0:02:59.1]} 2. Nc3 {[%clk 0:03:00.5]}
2... e6 {[%clk 0:02:58]} 3. e4 {[%clk 0:03:00]} 3... d5 {[%clk 0:02:52.7]} 4. e5
{[%clk 0:02:55.6]} 4... Nfd7 {[%clk 0:02:52.3]} 5. f4 {[%clk 0:02:55.1]} 5... c5
{[%clk 0:02:50.6]} 6. Nf3 {[%clk 0:02:54.1]} 6... Nc6 {[%clk 0:02:49.8]} 7. Be3
{[%clk 0:02:51.6]} 7... Qb6 {[%clk 0:02:44.9]} 8. Na4 {[%clk 0:02:49.5]} 8...
Qa5+ {[%clk 0:02:37.8]} 9. c3 {[%clk 0:02:49.4]} 9... cxd4 {[%clk 0:02:34.8]}
10. b4 {[%clk 0:02:49.1]} 10... Qc7 {[%clk 0:02:29.5]} 11. Nxd4 {[%clk
0:02:46.1]} 11... Nxd4 {[%clk 0:02:21]} 12. Bxd4 {[%clk 0:02:47]} 12... a5
{[%clk 0:02:14.2]} 13. a3 {[%clk 0:02:24.5]} 13... Be7 {[%clk 0:02:08.8]} 14.
Bd3 {[%clk 0:02:22.3]} 14... O-O {[%clk 0:02:00.4]} 15. O-O {[%clk 0:02:20.5]}
15... b6 {[%clk 0:01:49.6]} 16. Re1 {[%clk 0:01:59.2]} 16... Ba6 {[%clk
0:01:38.1]} 17. Bc2 {[%clk 0:01:47.3]} 17... Bc4 {[%clk 0:01:31.4]} 18. f5
{[%clk 0:01:45.5]} 18... exf5 {[%clk 0:01:23.4]} 19. Bxf5 {[%clk 0:01:41.7]}
19... b5 {[%clk 0:01:08.7]} 20. Nb2 {[%clk 0:01:37.6]} 20... axb4 {[%clk
0:01:05.3]} 21. axb4 {[%clk 0:01:36.1]} 21... Rxa1 {[%clk 0:00:53.4]} 22. Qxa1
{[%clk 0:01:37]} 22... Nb6 {[%clk 0:00:50.4]} 23. Qb1 {[%clk 0:01:23.5]} 23...
g6 {[%clk 0:00:47.6]} 24. Bg4 {[%clk 0:01:19.9]} 24... Na4 {[%clk 0:00:41.9]}
25. e6 {[%clk 0:01:13.5]} 25... f5 {[%clk 0:00:38.1]} 26. Bf3 {[%clk 0:01:10.2]}
26... Nxb2 {[%clk 0:00:36.9]} 27. Qxb2 {[%clk 0:01:11.1]} 27... Ra8 {[%clk
0:00:34.9]} 28. Ra1 {[%clk 0:01:05.1]} 28... Rxa1+ {[%clk 0:00:32.3]} 29. Qxa1
{[%clk 0:01:06]} 29... Qd6 {[%clk 0:00:27.2]} 30. Qa8+ {[%clk 0:01:02.8]} 30...
Qd8 {[%clk 0:00:25.9]} 31. Qb7 {[%clk 0:00:53.8]} 31... Kf8 {[%clk 0:00:22.6]}
32. Kh1 {[%clk 0:00:49.8]} 32... Ke8 {[%clk 0:00:19.6]} 33. Bf6 {[%clk
0:00:45.1]} 33... Kf8 {[%clk 0:00:18]} 34. h3 {[%clk 0:00:39.1]} 34... h5 {[%clk
0:00:17]} 35. Bxd5 {[%clk 0:00:30.9]} 35... Bxd5 {[%clk 0:00:16.5]} 36. Bxe7+
{[%clk 0:00:30.4]} 36... Qxe7 {[%clk 0:00:15.7]} 37. Qxd5 {[%clk 0:00:30.7]}
37... Kg7 {[%clk 0:00:14.7]} 38. Qe5+ {[%clk 0:00:30.4]} 38... Qf6 {[%clk
0:00:13.6]} 39. Qc7+ {[%clk 0:00:27.5]} 39... Kf8 {[%clk 0:00:12.8]} 40. Qc8+
{[%clk 0:00:26.6]} 40... Ke7 {[%clk 0:00:12.4]} 41. Qd7+ {[%clk 0:00:26.8]}
41... Kf8 {[%clk 0:00:12.4]} 42. Kg1 {[%clk 0:00:20.5]} 42... Qe7 {[%clk
0:00:10.2]} 43. Qxb5 {[%clk 0:00:18]} 43... Qxe6 {[%clk 0:00:10.2]} 44. Qc5+
{[%clk 0:00:18.3]} 44... Kf7 {[%clk 0:00:09.8]} 45. b5 {[%clk 0:00:17.1]} 45...
Qe1+ {[%clk 0:00:09.2]} 46. Kh2 {[%clk 0:00:17.6]} 46... Qe8 {[%clk 0:00:08.4]}
47. Qc7+ {[%clk 0:00:15.7]} 47... Kf6 {[%clk 0:00:08.1]} 48. b6 {[%clk
0:00:16.3]} 1-0

[Event "Early-Titled-Tuesday-Blitz-December-26-2023"]
[Site "Chess.com"]
[Date "2023.12.26"]
[Round "6"]
[White "mariofs"]
[Black "Abduzhaparov"]
[Result "1-0"]
[WhiteElo "2216"]
[BlackElo "2399"]
[TimeControl "180+1"]
[EndTime "9:07:04 PST"]
[Termination "mariofs won on time"]

1. d4 {[%clk 0:03:00.9]} 1... d6 {[%clk 0:03:00.9]} 2. Nc3 {[%clk 0:02:56.9]}
2... Nf6 {[%clk 0:03:01.8]} 3. e4 {[%clk 0:02:56.6]} 3... Nbd7 {[%clk
0:03:02.7]} 4. Bf4 {[%clk 0:02:56.3]} 4... e5 {[%clk 0:03:02.7]} 5. dxe5 {[%clk
0:02:50.6]} 5... dxe5 {[%clk 0:03:03.6]} 6. Bg5 {[%clk 0:02:45.1]} 6... c6
{[%clk 0:03:03.7]} 7. Bc4 {[%clk 0:02:41]} 7... Bb4 {[%clk 0:03:03]} 8. Ne2
{[%clk 0:02:31.6]} 8... Qa5 {[%clk 0:03:00]} 9. Bxf6 {[%clk 0:02:26.9]} 9...
Nxf6 {[%clk 0:02:59.2]} 10. Qd3 {[%clk 0:02:22.9]} 10... O-O {[%clk 0:02:55.4]}
11. O-O {[%clk 0:02:22.5]} 11... b5 {[%clk 0:02:53.7]} 12. Bb3 {[%clk
0:02:22.1]} 12... Bc5 {[%clk 0:02:51]} 13. Rad1 {[%clk 0:02:08.4]} 13... Qb6
{[%clk 0:02:48.8]} 14. h3 {[%clk 0:01:50.8]} 14... a5 {[%clk 0:02:48.5]} 15. a4
{[%clk 0:01:42]} 15... b4 {[%clk 0:02:48]} 16. Nb1 {[%clk 0:01:41.7]} 16... Ba6
{[%clk 0:02:44.3]} 17. Qf3 {[%clk 0:01:41]} 17... Rad8 {[%clk 0:02:39.7]} 18.
Nd2 {[%clk 0:01:36.4]} 18... Rd7 {[%clk 0:02:20.2]} 19. Nc4 {[%clk 0:01:36.4]}
19... Bxc4 {[%clk 0:02:17.4]} 20. Bxc4 {[%clk 0:01:37.3]} 20... Rfd8 {[%clk
0:02:12.8]} 21. Rxd7 {[%clk 0:01:37.2]} 21... Rxd7 {[%clk 0:02:13.7]} 22. Bd3
{[%clk 0:01:37.6]} 22... Bd4 {[%clk 0:01:58.1]} 23. b3 {[%clk 0:01:36.1]} 23...
Bc5 {[%clk 0:01:48.1]} 24. Ng3 {[%clk 0:01:35.2]} 24... Bf8 {[%clk 0:01:47.8]}
25. Nf5 {[%clk 0:01:34.1]} 25... g6 {[%clk 0:01:44.1]} 26. Ne3 {[%clk
0:01:34.1]} 26... Bg7 {[%clk 0:01:37]} 27. Nc4 {[%clk 0:01:34.1]} 27... Qc7
{[%clk 0:01:35.9]} 28. Rd1 {[%clk 0:01:33.3]} 28... Nh5 {[%clk 0:01:33.2]} 29.
g3 {[%clk 0:01:32.9]} 29... Qd8 {[%clk 0:01:30.2]} 30. Kg2 {[%clk 0:01:27.5]}
30... f6 {[%clk 0:01:25]} 31. Ne3 {[%clk 0:01:22.3]} 31... Bf8 {[%clk
0:01:16.1]} 32. Bc4+ {[%clk 0:01:15.6]} 32... Kg7 {[%clk 0:01:15.6]} 33. Rxd7+
{[%clk 0:01:12.1]} 33... Qxd7 {[%clk 0:01:16.5]} 34. Bd3 {[%clk 0:01:12.5]}
34... Bc5 {[%clk 0:01:12]} 35. Nc4 {[%clk 0:01:11.7]} 35... Qd8 {[%clk
0:01:00.5]} 36. Qd1 {[%clk 0:01:11.8]} 36... Qd4 {[%clk 0:00:57.6]} 37. Qf3
{[%clk 0:01:05.5]} 37... Qd8 {[%clk 0:00:53]} 38. Qd1 {[%clk 0:01:05.5]} 38...
Qd4 {[%clk 0:00:35.7]} 39. Qe1 {[%clk 0:00:51.6]} 39... Qd8 {[%clk 0:00:21.7]}
40. Be2 {[%clk 0:00:48.5]} 40... Kh6 {[%clk 0:00:18]} 41. Qc1+ {[%clk
0:00:44.1]} 41... Kg7 {[%clk 0:00:16.6]} 42. Qd1 {[%clk 0:00:39]} 42... Bd4
{[%clk 0:00:11.3]} 43. Bxh5 {[%clk 0:00:37.2]} 43... gxh5 {[%clk 0:00:12.2]} 44.
Qxh5 {[%clk 0:00:36.8]} 44... Bc5 {[%clk 0:00:10.5]} 45. Qg4+ {[%clk 0:00:34.4]}
45... Kf7 {[%clk 0:00:08.8]} 46. Qh5+ {[%clk 0:00:34.4]} 46... Kg7 {[%clk
0:00:09]} 47. Qe2 {[%clk 0:00:28.2]} 47... Kf7 {[%clk 0:00:06.6]} 48. h4 {[%clk
0:00:22.7]} 48... Kg7 {[%clk 0:00:05.9]} 49. Qd3 {[%clk 0:00:18.7]} 49... Bd4
{[%clk 0:00:05.4]} 50. Ne3 {[%clk 0:00:17.5]} 50... Kf7 {[%clk 0:00:01.9]} 51.
Nf5 {[%clk 0:00:17.5]} 1-0

[Event "Early-Titled-Tuesday-Blitz-December-26-2023"]
[Site "Chess.com"]
[Date "2023.12.26"]
[Round "6"]
[White "wonderfultime"]
[Black "Zhigalko_Sergei"]
[Result "1-0"]
[WhiteElo "3027"]
[BlackElo "2892"]
[TimeControl "180+1"]
[EndTime "9:07:06 PST"]
[Termination "wonderfultime won on time"]

1. d4 {[%clk 0:02:55.1]} 1... Nf6 {[%clk 0:03:00.1]} 2. c4 {[%clk 0:02:54.9]}
2... e6 {[%clk 0:03:00.6]} 3. Nc3 {[%clk 0:02:55.3]} 3... Bb4 {[%clk 0:03:00.2]}
4. e3 {[%clk 0:02:55.6]} 4... O-O {[%clk 0:02:56.4]} 5. Bd2 {[%clk 0:02:55.4]}
5... b6 {[%clk 0:02:44.4]} 6. Nf3 {[%clk 0:02:52.6]} 6... Bb7 {[%clk 0:02:43.5]}
7. Bd3 {[%clk 0:02:52.8]} 7... d6 {[%clk 0:02:43.3]} 8. O-O {[%clk 0:02:52.8]}
8... Nbd7 {[%clk 0:02:36.9]} 9. a3 {[%clk 0:02:46.8]} 9... Bxc3 {[%clk
0:02:35.4]} 10. Bxc3 {[%clk 0:02:47.7]} 10... Ne4 {[%clk 0:02:35.9]} 11. Be1
{[%clk 0:02:48.2]} 11... f5 {[%clk 0:02:35.9]} 12. Nd2 {[%clk 0:02:45.8]} 12...
Qe8 {[%clk 0:02:11.4]} 13. f3 {[%clk 0:02:43.7]} 13... Ng5 {[%clk 0:02:08.1]}
14. Bc2 {[%clk 0:02:15]} 14... Qg6 {[%clk 0:02:03.7]} 15. Kh1 {[%clk 0:02:14.2]}
15... Rae8 {[%clk 0:01:56.2]} 16. Qe2 {[%clk 0:02:12.4]} 16... e5 {[%clk
0:01:35.1]} 17. d5 {[%clk 0:02:12.6]} 17... Qh6 {[%clk 0:01:30]} 18. b4 {[%clk
0:02:08.6]} 18... Bc8 {[%clk 0:01:23.1]} 19. Nb1 {[%clk 0:02:01.5]} 19... Nf6
{[%clk 0:01:16.4]} 20. Nc3 {[%clk 0:02:01.7]} 20... f4 {[%clk 0:01:06.5]} 21.
exf4 {[%clk 0:01:44.3]} 21... exf4 {[%clk 0:01:03.5]} 22. Qd2 {[%clk 0:01:44.9]}
22... Nh5 {[%clk 0:00:48.4]} 23. Kg1 {[%clk 0:01:44.9]} 23... Bf5 {[%clk
0:00:44.2]} 24. Bxf5 {[%clk 0:01:40.2]} 24... Rxf5 {[%clk 0:00:44.2]} 25. Bh4
{[%clk 0:01:41]} 25... Nf6 {[%clk 0:00:34.5]} 26. Bf2 {[%clk 0:01:35.2]} 26...
Qh5 {[%clk 0:00:17.6]} 27. Bd4 {[%clk 0:01:23.4]} 27... Nd7 {[%clk 0:00:17.5]}
28. Rae1 {[%clk 0:01:21.9]} 28... Ne5 {[%clk 0:00:17.9]} 29. Kh1 {[%clk
0:01:15.6]} 29... Rf6 {[%clk 0:00:15.6]} 30. c5 {[%clk 0:00:56.8]} 30... Ngf7
{[%clk 0:00:07.7]} 31. Ne4 {[%clk 0:00:56]} 31... Rf5 {[%clk 0:00:05.9]} 32.
cxd6 {[%clk 0:00:56]} 32... cxd6 {[%clk 0:00:06.3]} 33. Qc2 {[%clk 0:00:47.1]}
33... Qh6 {[%clk 0:00:05.8]} 34. Qc7 {[%clk 0:00:45]} 34... Rh5 {[%clk
0:00:05.8]} 35. Bg1 {[%clk 0:00:45.7]} 35... Rf8 {[%clk 0:00:02.9]} 36. Qxa7
{[%clk 0:00:39.7]} 36... Ng6 {[%clk 0:00:02.3]} 37. Qxb6 {[%clk 0:00:33.5]}
37... Nh4 {[%clk 0:00:02.9]} 38. Qf2 {[%clk 0:00:33.7]} 38... Nf5 {[%clk
0:00:02.8]} 39. b5 {[%clk 0:00:29.6]} 39... Ng5 {[%clk 0:00:03.1]} 40. h3 {[%clk
0:00:18]} 40... Ng3+ {[%clk 0:00:02.8]} 41. Nxg3 {[%clk 0:00:17.9]} 41... Nxh3
{[%clk 0:00:03.5]} 42. Nxh5 {[%clk 0:00:14.6]} 42... Nxf2+ {[%clk 0:00:03.2]}
43. Bxf2 {[%clk 0:00:15.5]} 43... Qxh5+ {[%clk 0:00:03.6]} 44. Kg1 {[%clk
0:00:16.4]} 44... Qxd5 {[%clk 0:00:03.5]} 45. b6 {[%clk 0:00:16.9]} 45... Rb8
{[%clk 0:00:02]} 46. Re7 {[%clk 0:00:15.8]} 46... Qa5 {[%clk 0:00:01.7]} 47. Rc1
{[%clk 0:00:15.5]} 47... h6 {[%clk 0:00:01.1]} 48. Rcc7 {[%clk 0:00:15.2]} 1-0

[Event "Early-Titled-Tuesday-Blitz-December-26-2023"]
[Site "Chess.com"]
[Date "2023.12.26"]
[Round "6"]
[White "Philosopherrr"]
[Black "ProfessorChess101"]
[Result "0-1"]
[WhiteElo "2399"]
[BlackElo "2604"]
[TimeControl "180+1"]
[EndTime "9:07:09 PST"]
[Termination "ProfessorChess101 won on time"]

1. e4 {[%clk 0:03:00.6]} 1... c5 {[%clk 0:02:58.6]} 2. Nf3 {[%clk 0:03:00.2]}
2... Nc6 {[%clk 0:02:58.8]} 3. Bb5 {[%clk 0:02:57.3]} 3... e5 {[%clk 0:02:58.4]}
4. O-O {[%clk 0:02:56.8]} 4... Bd6 {[%clk 0:02:58.7]} 5. c3 {[%clk 0:02:51.7]}
5... a6 {[%clk 0:02:54.9]} 6. Ba4 {[%clk 0:02:51.4]} 6... b5 {[%clk 0:02:44.9]}
7. Bb3 {[%clk 0:02:51.8]} 7... c4 {[%clk 0:02:44]} 8. Bc2 {[%clk 0:02:51.8]}
8... Nge7 {[%clk 0:02:41.5]} 9. d4 {[%clk 0:02:51.4]} 9... cxd3 {[%clk
0:02:41.7]} 10. Qxd3 {[%clk 0:02:48.3]} 10... Bc5 {[%clk 0:02:34.5]} 11. a4
{[%clk 0:02:45.7]} 11... b4 {[%clk 0:02:32.1]} 12. Nbd2 {[%clk 0:02:43.6]} 12...
d6 {[%clk 0:02:21.1]} 13. Nc4 {[%clk 0:02:41.1]} 13... O-O {[%clk 0:02:18]} 14.
Rd1 {[%clk 0:02:36.9]} 14... Bg4 {[%clk 0:02:12.4]} 15. h3 {[%clk 0:02:33.9]}
15... Bh5 {[%clk 0:02:07.2]} 16. Bg5 {[%clk 0:02:14.6]} 16... Qc7 {[%clk
0:01:52.3]} 17. g4 {[%clk 0:02:06.3]} 17... Bg6 {[%clk 0:01:50.6]} 18. Ne3
{[%clk 0:02:03.2]} 18... Qa7 {[%clk 0:01:40.2]} 19. Nf5 {[%clk 0:01:33.6]} 19...
Bxf2+ {[%clk 0:01:26.9]} 20. Kg2 {[%clk 0:01:33.3]} 20... Bc5 {[%clk 0:01:22.8]}
21. Bb3 {[%clk 0:01:28]} 21... d5 {[%clk 0:00:50]} 22. Bxd5 {[%clk 0:01:22.8]}
22... Rad8 {[%clk 0:00:45.4]} 23. Qc4 {[%clk 0:01:13.8]} 23... Bxf5 {[%clk
0:00:37.7]} 24. gxf5 {[%clk 0:01:12.4]} 24... Nxd5 {[%clk 0:00:31.6]} 25. Rxd5
{[%clk 0:01:10.7]} 25... Rxd5 {[%clk 0:00:28.4]} 26. Qxd5 {[%clk 0:01:10.8]}
26... Ne7 {[%clk 0:00:23.8]} 27. Qc4 {[%clk 0:01:06.4]} 27... bxc3 {[%clk
0:00:22]} 28. bxc3 {[%clk 0:01:05.5]} 28... h6 {[%clk 0:00:20.1]} 29. Bh4 {[%clk
0:00:59.9]} 29... Qb6 {[%clk 0:00:20.2]} 30. Rd1 {[%clk 0:00:54.1]} 30... Nc6
{[%clk 0:00:17.3]} 31. f6 {[%clk 0:00:43.1]} 31... g6 {[%clk 0:00:13.6]} 32. Bg3
{[%clk 0:00:34.9]} 32... Re8 {[%clk 0:00:08.6]} 33. Rd5 {[%clk 0:00:28.9]} 33...
Bf8 {[%clk 0:00:08.9]} 34. Nxe5 {[%clk 0:00:23.3]} 34... Nxe5 {[%clk 0:00:09.2]}
35. Bxe5 {[%clk 0:00:21.7]} 35... Qb2+ {[%clk 0:00:09.1]} 36. Kf3 {[%clk
0:00:20.2]} 36... Qc1 {[%clk 0:00:06.1]} 37. Rd7 {[%clk 0:00:16.9]} 37... Qh1+
{[%clk 0:00:06.2]} 38. Kg3 {[%clk 0:00:13]} 38... Qg1+ {[%clk 0:00:06.1]} 39.
Kf3 {[%clk 0:00:05.3]} 39... Re6 {[%clk 0:00:06.7]} 40. Rd8 {[%clk 0:00:02.8]}
40... Qh1+ {[%clk 0:00:05.8]} 0-1

[Event "Early-Titled-Tuesday-Blitz-December-26-2023"]
[Site "Chess.com"]
[Date "2023.12.26"]
[Round "6"]
[White "jacky72"]
[Black "jeetjain"]
[Result "1-0"]
[WhiteElo "2810"]
[BlackElo "2576"]
[TimeControl "180+1"]
[EndTime "9:07:11 PST"]
[Termination "jacky72 won by checkmate"]

1. b3 {[%clk 0:03:00.9]} 1... Nf6 {[%clk 0:02:59.1]} 2. Bb2 {[%clk 0:03:00.7]}
2... g6 {[%clk 0:03:00]} 3. Nf3 {[%clk 0:03:01]} 3... Bg7 {[%clk 0:02:56.1]} 4.
c4 {[%clk 0:03:01.9]} 4... O-O {[%clk 0:02:56.1]} 5. e3 {[%clk 0:03:02.4]} 5...
c6 {[%clk 0:02:56.4]} 6. Be2 {[%clk 0:03:02.4]} 6... d6 {[%clk 0:02:56.9]} 7.
O-O {[%clk 0:03:02.6]} 7... Nbd7 {[%clk 0:02:57.3]} 8. d4 {[%clk 0:03:03]} 8...
Qc7 {[%clk 0:02:57.3]} 9. Nc3 {[%clk 0:03:01.6]} 9... e5 {[%clk 0:02:53]} 10.
dxe5 {[%clk 0:02:58.2]} 10... dxe5 {[%clk 0:02:52.9]} 11. b4 {[%clk 0:02:58.4]}
11... a5 {[%clk 0:02:52]} 12. a3 {[%clk 0:02:57.9]} 12... Re8 {[%clk 0:02:50]}
13. c5 {[%clk 0:02:57.2]} 13... h5 {[%clk 0:02:46.9]} 14. e4 {[%clk 0:02:54.1]}
14... Nf8 {[%clk 0:02:45.3]} 15. Ng5 {[%clk 0:02:47.7]} 15... Ne6 {[%clk
0:02:43.9]} 16. Nxe6 {[%clk 0:02:47.4]} 16... Bxe6 {[%clk 0:02:44.8]} 17. Qc2
{[%clk 0:02:43.1]} 17... h4 {[%clk 0:02:44.4]} 18. Na4 {[%clk 0:02:40.9]} 18...
h3 {[%clk 0:02:43]} 19. g3 {[%clk 0:02:40.5]} 19... Rad8 {[%clk 0:02:40.8]} 20.
Nb6 {[%clk 0:02:40.5]} 20... Bh6 {[%clk 0:02:33.6]} 21. Rfd1 {[%clk 0:02:38.7]}
21... Bg4 {[%clk 0:02:32.1]} 22. Bxg4 {[%clk 0:02:30.6]} 22... Nxg4 {[%clk
0:02:33]} 23. Qe2 {[%clk 0:02:31.3]} 23... Nf6 {[%clk 0:02:28.9]} 24. Nc4 {[%clk
0:02:17.9]} 24... Rxd1+ {[%clk 0:02:12.2]} 25. Rxd1 {[%clk 0:02:17.3]} 25... Bg7
{[%clk 0:02:08.8]} 26. Nxa5 {[%clk 0:02:14.4]} 26... b6 {[%clk 0:01:44.9]} 27.
Nb3 {[%clk 0:02:07.3]} 27... Nd7 {[%clk 0:01:36.8]} 28. cxb6 {[%clk 0:02:05.7]}
28... Nxb6 {[%clk 0:01:37.7]} 29. Nc5 {[%clk 0:02:06.4]} 29... Qe7 {[%clk
0:01:33.8]} 30. f3 {[%clk 0:02:04.6]} 30... Rd8 {[%clk 0:01:31]} 31. Rxd8+
{[%clk 0:02:00.1]} 31... Qxd8 {[%clk 0:01:31.9]} 32. Qd3 {[%clk 0:02:01]} 32...
Qe7 {[%clk 0:01:27.6]} 33. a4 {[%clk 0:02:00.1]} 33... Bf8 {[%clk 0:01:26.7]}
34. a5 {[%clk 0:02:00.1]} 34... Nc8 {[%clk 0:01:24]} 35. Qc3 {[%clk 0:01:50.3]}
35... f6 {[%clk 0:01:19.3]} 36. Qc4+ {[%clk 0:01:49.8]} 36... Kh7 {[%clk
0:01:17.2]} 37. Nd3 {[%clk 0:01:40.4]} 37... Qa7+ {[%clk 0:01:13.6]} 38. Nc5
{[%clk 0:01:39.6]} 38... Nd6 {[%clk 0:01:07]} 39. Qe6 {[%clk 0:01:28.9]} 39...
Nxe4 {[%clk 0:01:05.4]} 40. Qxh3+ {[%clk 0:01:21.5]} 40... Kg7 {[%clk
0:00:52.1]} 41. Qd7+ {[%clk 0:01:09.9]} 41... Qxd7 {[%clk 0:00:46]} 42. Nxd7
{[%clk 0:01:10.8]} 42... Nd6 {[%clk 0:00:35.5]} 43. Nxf8 {[%clk 0:01:09.9]}
43... Kxf8 {[%clk 0:00:35.5]} 44. a6 {[%clk 0:01:10.4]} 44... Nb5 {[%clk
0:00:35.5]} 45. Bc1 {[%clk 0:01:11.3]} 45... c5 {[%clk 0:00:26.5]} 46. bxc5
{[%clk 0:01:08.4]} 46... Ke7 {[%clk 0:00:27.1]} 47. h4 {[%clk 0:01:05.4]} 47...
Kd7 {[%clk 0:00:23.1]} 48. g4 {[%clk 0:01:05.4]} 48... Kc6 {[%clk 0:00:20.4]}
49. h5 {[%clk 0:01:05]} 49... gxh5 {[%clk 0:00:21.3]} 50. gxh5 {[%clk
0:01:05.9]} 50... Nd4 {[%clk 0:00:22.2]} 51. h6 {[%clk 0:01:01.9]} 51... Nxf3+
{[%clk 0:00:22]} 52. Kh1 {[%clk 0:01:01]} 52... Nh4 {[%clk 0:00:22.9]} 53. h7
{[%clk 0:00:58.2]} 53... Ng6 {[%clk 0:00:23.1]} 54. Bh6 {[%clk 0:00:56.6]} 54...
e4 {[%clk 0:00:21.1]} 55. Bg7 {[%clk 0:00:54.2]} 55... f5 {[%clk 0:00:20.5]} 56.
h8=Q {[%clk 0:00:54.5]} 56... Nxh8 {[%clk 0:00:20.4]} 57. Bxh8 {[%clk
0:00:55.4]} 57... f4 {[%clk 0:00:20.8]} 58. Be5 {[%clk 0:00:52.7]} 58... f3
{[%clk 0:00:20.4]} 59. Bd4 {[%clk 0:00:53.1]} 59... Kc7 {[%clk 0:00:20.2]} 60.
Kg1 {[%clk 0:00:53.1]} 60... Kb8 {[%clk 0:00:18.6]} 61. c6 {[%clk 0:00:52.3]}
61... Ka8 {[%clk 0:00:17.1]} 62. c7 {[%clk 0:00:49.1]} 62... f2+ {[%clk
0:00:17.3]} 63. Kf1 {[%clk 0:00:49.2]} 63... e3 {[%clk 0:00:17.2]} 64. c8=Q#
{[%clk 0:00:49.6]} 1-0

[Event "Early-Titled-Tuesday-Blitz-December-26-2023"]
[Site "Chess.com"]
[Date "2023.12.26"]
[Round "6"]
[White "Bauman_Guy"]
[Black "GMWSO"]
[Result "0-1"]
[WhiteElo "2905"]
[BlackElo "3050"]
[TimeControl "180+1"]
[EndTime "9:07:14 PST"]
[Termination "GMWSO won by resignation"]

1. e4 {[%clk 0:03:00.9]} 1... e5 {[%clk 0:02:58.2]} 2. Nf3 {[%clk 0:03:01]} 2...
Nc6 {[%clk 0:02:57.7]} 3. Bb5 {[%clk 0:03:01.1]} 3... Nf6 {[%clk 0:02:57.4]} 4.
O-O {[%clk 0:02:59.8]} 4... Nxe4 {[%clk 0:02:57.3]} 5. Re1 {[%clk 0:03:00.3]}
5... Nd6 {[%clk 0:02:57.5]} 6. a4 {[%clk 0:03:00.8]} 6... Be7 {[%clk 0:02:52]}
7. Nc3 {[%clk 0:03:00.5]} 7... a6 {[%clk 0:02:50.7]} 8. Bf1 {[%clk 0:03:00.3]}
8... f6 {[%clk 0:02:45.3]} 9. d4 {[%clk 0:02:59.5]} 9... Nf7 {[%clk 0:02:44.5]}
10. Nd5 {[%clk 0:02:51.2]} 10... O-O {[%clk 0:02:43.7]} 11. c3 {[%clk
0:02:45.8]} 11... d6 {[%clk 0:02:39.6]} 12. Bc4 {[%clk 0:02:38.3]} 12... Kh8
{[%clk 0:02:39.1]} 13. Qd3 {[%clk 0:02:05.8]} 13... a5 {[%clk 0:02:20.1]} 14.
Nh4 {[%clk 0:01:49]} 14... Qd7 {[%clk 0:01:58.7]} 15. Bb3 {[%clk 0:01:03.2]}
15... Bd8 {[%clk 0:01:50.2]} 16. Bc2 {[%clk 0:00:54.4]} 16... f5 {[%clk
0:01:50.2]} 17. Nxf5 {[%clk 0:00:54]} 17... Qxf5 {[%clk 0:01:50.3]} 18. Qxf5
{[%clk 0:00:54]} 18... Bxf5 {[%clk 0:01:51.2]} 19. Bxf5 {[%clk 0:00:54.9]} 19...
exd4 {[%clk 0:01:51.9]} 20. f4 {[%clk 0:00:51.7]} 20... Nh6 {[%clk 0:01:47.5]}
21. Be4 {[%clk 0:00:47.7]} 21... Ng8 {[%clk 0:01:45.8]} 22. Rd1 {[%clk
0:00:32.3]} 22... Nf6 {[%clk 0:01:43.6]} 23. Nxf6 {[%clk 0:00:27.3]} 23... Bxf6
{[%clk 0:01:44.5]} 24. Bxc6 {[%clk 0:00:27.7]} 24... bxc6 {[%clk 0:01:45.4]} 25.
cxd4 {[%clk 0:00:27.8]} 25... Rfe8 {[%clk 0:01:42.8]} 26. Kf2 {[%clk 0:00:27.4]}
26... Rab8 {[%clk 0:01:40.8]} 27. Rd3 {[%clk 0:00:13.2]} 27... Re4 {[%clk
0:01:36.7]} 28. Be3 {[%clk 0:00:09.9]} 28... Rxb2+ {[%clk 0:01:25]} 29. Kf3
{[%clk 0:00:10.4]} 29... d5 {[%clk 0:01:21.1]} 30. Rc1 {[%clk 0:00:10.7]} 30...
Rb6 {[%clk 0:01:19.6]} 31. Rdc3 {[%clk 0:00:09.9]} 31... h5 {[%clk 0:01:00]} 32.
Rxc6 {[%clk 0:00:08.6]} 32... Rb4 {[%clk 0:00:42.6]} 33. Rxc7 {[%clk 0:00:07.8]}
33... Rxa4 {[%clk 0:00:43]} 34. R7c5 {[%clk 0:00:07]} 34... Ra3 {[%clk
0:00:29.1]} 35. R1c3 {[%clk 0:00:06.9]} 35... Rxc3 {[%clk 0:00:29.2]} 36. Rxc3
{[%clk 0:00:07.5]} 36... Bxd4 {[%clk 0:00:29.6]} 37. Bxd4 {[%clk 0:00:08.1]}
37... Rxd4 {[%clk 0:00:30.5]} 38. Rc5 {[%clk 0:00:09]} 38... a4 {[%clk
0:00:30.4]} 39. Ke3 {[%clk 0:00:07.4]} 39... Re4+ {[%clk 0:00:30.1]} 40. Kf3
{[%clk 0:00:07.9]} 40... Rd4 {[%clk 0:00:28.4]} 41. Ke3 {[%clk 0:00:08]} 41...
Rd1 {[%clk 0:00:16.8]} 42. Ke2 {[%clk 0:00:08.3]} 42... Rh1 {[%clk 0:00:17.3]}
43. h3 {[%clk 0:00:08.1]} 43... a3 {[%clk 0:00:16.7]} 44. Ra5 {[%clk 0:00:06]}
44... Ra1 {[%clk 0:00:17.1]} 45. Kf2 {[%clk 0:00:02.1]} 45... a2 {[%clk
0:00:14.9]} 46. Kg3 {[%clk 0:00:02.4]} 46... d4 {[%clk 0:00:14]} 47. Rxh5+
{[%clk 0:00:02.1]} 47... Kg8 {[%clk 0:00:14]} 48. Ra5 {[%clk 0:00:03]} 48... d3
{[%clk 0:00:14.2]} 0-1